[Event "Early-Titled-Tuesday-Blitz-October-10-2023"]
[Site "Chess.com"]
[Date "2023.10.10"]
[Round "8"]
[White "WelshTiger"]
[Black "GlavkonVVS"]
[Result "1-0"]
[WhiteElo "2424"]
[BlackElo "2533"]
[TimeControl "180+1"]
[EndTime "9:28:13 PDT"]
[Termination "WelshTiger won on time"]

1. c3 {[%clk 0:02:55.1]} 1... Nf6 {[%clk 0:02:15.7]} 2. g3 {[%clk 0:02:54.5]}
2... d5 {[%clk 0:02:16]} 3. Bg2 {[%clk 0:02:54.7]} 3... Bf5 {[%clk 0:02:16.6]}
4. d3 {[%clk 0:02:54.5]} 4... c5 {[%clk 0:02:16.8]} 5. Nd2 {[%clk 0:02:53.9]}
5... Nc6 {[%clk 0:02:17.1]} 6. Ngf3 {[%clk 0:02:50.7]} 6... e6 {[%clk
0:02:17.3]} 7. O-O {[%clk 0:02:50.8]} 7... h6 {[%clk 0:02:17.3]} 8. Re1 {[%clk
0:02:51.3]} 8... Be7 {[%clk 0:02:16.8]} 9. e4 {[%clk 0:02:51.2]} 9... Bh7 {[%clk
0:02:17.3]} 10. Qe2 {[%clk 0:02:50.9]} 10... O-O {[%clk 0:02:17.4]} 11. h4
{[%clk 0:02:44]} 11... b5 {[%clk 0:02:11.5]} 12. a4 {[%clk 0:02:42.5]} 12... b4
{[%clk 0:02:11.6]} 13. exd5 {[%clk 0:02:32.8]} 13... Nxd5 {[%clk 0:02:07.4]} 14.
Ne4 {[%clk 0:02:32.9]} 14... Rc8 {[%clk 0:02:04]} 15. Be3 {[%clk 0:02:20]} 15...
bxc3 {[%clk 0:02:00.1]} 16. bxc3 {[%clk 0:02:19.5]} 16... Na5 {[%clk 0:01:57.8]}
17. Ne5 {[%clk 0:01:48.9]} 17... Qc7 {[%clk 0:01:48]} 18. Nc4 {[%clk 0:01:44.3]}
18... Nxc4 {[%clk 0:01:46.4]} 19. dxc4 {[%clk 0:01:45.2]} 19... Bxe4 {[%clk
0:01:45.2]} 20. Bxe4 {[%clk 0:01:42.8]} 20... Nxc3 {[%clk 0:01:45.5]} 21. Qf3
{[%clk 0:01:43.3]} 21... Nxe4 {[%clk 0:01:45.9]} 22. Qxe4 {[%clk 0:01:44.2]}
22... Bf6 {[%clk 0:01:46.3]} 23. Rab1 {[%clk 0:01:43]} 23... Rb8 {[%clk
0:01:46.1]} 24. Rb5 {[%clk 0:01:42.9]} 24... Rxb5 {[%clk 0:01:41.9]} 25. axb5
{[%clk 0:01:43.2]} 25... Rd8 {[%clk 0:01:41.3]} 26. Kg2 {[%clk 0:01:42.4]} 26...
Bd4 {[%clk 0:01:41.1]} 27. Bf4 {[%clk 0:01:41.2]} 27... Qa5 {[%clk 0:01:37.4]}
28. Re2 {[%clk 0:01:32.4]} 28... Qc3 {[%clk 0:01:37.2]} 29. Bc7 {[%clk
0:01:29.7]} 29... Rf8 {[%clk 0:01:31.7]} 30. Rc2 {[%clk 0:01:27]} 30... Qb3
{[%clk 0:01:30.2]} 31. h5 {[%clk 0:01:21.1]} 31... Rc8 {[%clk 0:01:27.4]} 32.
Bf4 {[%clk 0:01:19.4]} 32... Qa4 {[%clk 0:01:11.8]} 33. Bd6 {[%clk 0:01:05.5]}
33... Re8 {[%clk 0:01:05]} 34. g4 {[%clk 0:00:58.3]} 34... Qb3 {[%clk
0:01:01.9]} 35. Bf4 {[%clk 0:00:55.5]} 35... Qb1 {[%clk 0:00:58.7]} 36. g5
{[%clk 0:00:54.5]} 36... hxg5 {[%clk 0:00:58.3]} 37. Bxg5 {[%clk 0:00:54.9]}
37... f5 {[%clk 0:00:57.8]} 38. Qd3 {[%clk 0:00:48]} 38... Kf7 {[%clk
0:00:50.2]} 39. Qe2 {[%clk 0:00:41.5]} 39... Qb3 {[%clk 0:00:46]} 40. Ra2 {[%clk
0:00:41.4]} 40... Ra8 {[%clk 0:00:42.5]} 41. Ra6 {[%clk 0:00:40.9]} 41... e5
{[%clk 0:00:39.9]} 42. h6 {[%clk 0:00:41.2]} 42... g6 {[%clk 0:00:36.7]} 43. h7
{[%clk 0:00:40]} 43... e4 {[%clk 0:00:33.9]} 44. Rc6 {[%clk 0:00:34.9]} 44...
Rh8 {[%clk 0:00:27]} 45. Rc7+ {[%clk 0:00:33.2]} 45... Ke6 {[%clk 0:00:27.3]}
46. Re7+ {[%clk 0:00:28.1]} 46... Kd6 {[%clk 0:00:27.4]} 47. Rxa7 {[%clk
0:00:28.5]} 47... Qd3 {[%clk 0:00:16.2]} 48. Bf4+ {[%clk 0:00:26.6]} 48... Ke6
{[%clk 0:00:16.2]} 49. Qxd3 {[%clk 0:00:19.3]} 49... exd3 {[%clk 0:00:16.6]} 50.
b6 {[%clk 0:00:20.1]} 50... Be5 {[%clk 0:00:13]} 51. Bd2 {[%clk 0:00:20]} 51...
f4 {[%clk 0:00:10.7]} 52. Kf3 {[%clk 0:00:19.6]} 52... Kf5 {[%clk 0:00:10.4]}
53. Rf7+ {[%clk 0:00:18.5]} 53... Ke6 {[%clk 0:00:10.5]} 54. Ra7 {[%clk
0:00:17.4]} 54... Rb8 {[%clk 0:00:09.5]} 55. b7 {[%clk 0:00:17]} 55... Rh8
{[%clk 0:00:08.4]} 56. Ra8 {[%clk 0:00:16.6]} 56... Rxh7 {[%clk 0:00:08.2]} 57.
Re8+ {[%clk 0:00:16.2]} 57... Kd7 {[%clk 0:00:07.3]} 58. Rxe5 {[%clk 0:00:17.1]}
58... Kc7 {[%clk 0:00:06.8]} 59. Rxc5+ {[%clk 0:00:17]} 59... Kxb7 {[%clk
0:00:06.9]} 60. Bxf4 {[%clk 0:00:16.7]} 60... Rh3+ {[%clk 0:00:07.1]} 61. Ke4
{[%clk 0:00:16.4]} 61... Rh4 {[%clk 0:00:04.8]} 62. Rd5 {[%clk 0:00:15.3]} 62...
d2 {[%clk 0:00:02.2]} 63. Kf3 {[%clk 0:00:13.7]} 1-0

[Event "Early-Titled-Tuesday-Blitz-October-10-2023"]
[Site "Chess.com"]
[Date "2023.10.10"]
[Round "8"]
[White "RodTwinkz"]
[Black "Josgar05"]
[Result "1-0"]
[WhiteElo "2792"]
[BlackElo "2285"]
[TimeControl "180+1"]
[EndTime "9:28:15 PDT"]
[Termination "RodTwinkz won by resignation"]

1. e4 {[%clk 0:03:00.9]} 1... c5 {[%clk 0:02:58.8]} 2. Nc3 {[%clk 0:03:00.5]}
2... a6 {[%clk 0:02:57.5]} 3. a4 {[%clk 0:03:00.2]} 3... e6 {[%clk 0:02:57.3]}
4. f4 {[%clk 0:03:00.4]} 4... d5 {[%clk 0:02:57.9]} 5. Nf3 {[%clk 0:03:00.5]}
5... dxe4 {[%clk 0:02:57.4]} 6. Nxe4 {[%clk 0:03:00.3]} 6... Nc6 {[%clk
0:02:58]} 7. d3 {[%clk 0:02:59.6]} 7... Nf6 {[%clk 0:02:58.6]} 8. Nf2 {[%clk
0:02:59.2]} 8... Be7 {[%clk 0:02:58.7]} 9. g3 {[%clk 0:02:59.6]} 9... O-O {[%clk
0:02:59.2]} 10. Bg2 {[%clk 0:03:00]} 10... Qc7 {[%clk 0:02:56.2]} 11. O-O {[%clk
0:02:59.9]} 11... b6 {[%clk 0:02:56.6]} 12. b3 {[%clk 0:02:59.6]} 12... Bb7
{[%clk 0:02:56.4]} 13. Bb2 {[%clk 0:02:59.9]} 13... Rad8 {[%clk 0:02:56.9]} 14.
Re1 {[%clk 0:02:45]} 14... Nd4 {[%clk 0:02:52.1]} 15. c3 {[%clk 0:02:20.8]}
15... Nf5 {[%clk 0:02:28.1]} 16. Qe2 {[%clk 0:02:14.2]} 16... h5 {[%clk
0:02:22.6]} 17. Ne4 {[%clk 0:02:05.2]} 17... Ng4 {[%clk 0:01:55.1]} 18. Bc1
{[%clk 0:01:35.4]} 18... Qd7 {[%clk 0:01:48.4]} 19. Bf1 {[%clk 0:01:08.7]} 19...
Bc6 {[%clk 0:01:07.8]} 20. Ne5 {[%clk 0:01:02.1]} 20... Nxe5 {[%clk 0:01:07]}
21. fxe5 {[%clk 0:01:03]} 21... Qd5 {[%clk 0:00:41.2]} 22. Qxh5 {[%clk
0:00:28.9]} 22... g6 {[%clk 0:00:40.9]} 23. Qg4 {[%clk 0:00:18.7]} 23... Qxe5
{[%clk 0:00:37.6]} 24. Bf4 {[%clk 0:00:16.2]} 24... Qg7 {[%clk 0:00:36.5]} 25.
Rad1 {[%clk 0:00:13.4]} 25... Bd5 {[%clk 0:00:35.4]} 26. Rb1 {[%clk 0:00:09.2]}
26... Rd7 {[%clk 0:00:30.7]} 27. h4 {[%clk 0:00:08.2]} 27... Rfd8 {[%clk
0:00:29.5]} 28. Bg5 {[%clk 0:00:08.1]} 28... Bxe4 {[%clk 0:00:20.7]} 29. dxe4
{[%clk 0:00:07.6]} 29... Bxg5 {[%clk 0:00:19.7]} 30. hxg5 {[%clk 0:00:07.1]}
30... Ne7 {[%clk 0:00:15.8]} 31. Bxa6 {[%clk 0:00:07.1]} 31... Qxc3 {[%clk
0:00:15.3]} 32. Bb5 {[%clk 0:00:06.7]} 32... Rd2 {[%clk 0:00:14.7]} 33. Re2
{[%clk 0:00:06.4]} 33... Rxe2 {[%clk 0:00:14.6]} 34. Qxe2 {[%clk 0:00:06.1]}
34... Qxg3+ {[%clk 0:00:14.7]} 35. Qg2 {[%clk 0:00:06.1]} 35... Qe3+ {[%clk
0:00:12.8]} 36. Qf2 {[%clk 0:00:05.6]} 36... Qxg5+ {[%clk 0:00:12.9]} 37. Kf1
{[%clk 0:00:06.1]} 37... Kg7 {[%clk 0:00:12.8]} 38. Re1 {[%clk 0:00:06]} 38...
e5 {[%clk 0:00:13]} 39. Bc4 {[%clk 0:00:05.5]} 39... Rd2 {[%clk 0:00:13.1]} 40.
Qxf7+ {[%clk 0:00:05.3]} 40... Kh6 {[%clk 0:00:11.9]} 41. Qf8+ {[%clk
0:00:05.8]} 41... Kh5 {[%clk 0:00:12.4]} 42. Be2+ {[%clk 0:00:05.6]} 42... Rxe2
{[%clk 0:00:08.6]} 43. Rxe2 {[%clk 0:00:06.5]} 43... Qf4+ {[%clk 0:00:08.7]} 44.
Qxf4 {[%clk 0:00:05.8]} 44... exf4 {[%clk 0:00:09.6]} 45. Rh2+ {[%clk
0:00:06.4]} 45... Kg4 {[%clk 0:00:09.9]} 46. Rd2 {[%clk 0:00:07.3]} 46... Kf3
{[%clk 0:00:09.6]} 47. Rd7 {[%clk 0:00:08.2]} 47... Nc6 {[%clk 0:00:09.6]} 48.
Rd6 {[%clk 0:00:08.8]} 48... Ne5 {[%clk 0:00:10]} 49. Rxb6 {[%clk 0:00:09.2]}
49... g5 {[%clk 0:00:10.6]} 50. a5 {[%clk 0:00:10.1]} 50... g4 {[%clk
0:00:11.2]} 51. a6 {[%clk 0:00:10.8]} 51... g3 {[%clk 0:00:11.7]} 52. a7 {[%clk
0:00:11.4]} 52... g2+ {[%clk 0:00:11.8]} 53. Kg1 {[%clk 0:00:11.8]} 53... Kg3
{[%clk 0:00:12.3]} 54. Rg6+ {[%clk 0:00:11]} 54... Nxg6 {[%clk 0:00:12.8]} 55.
a8=Q {[%clk 0:00:11.5]} 55... f3 {[%clk 0:00:10.8]} 56. Qb8+ {[%clk 0:00:10.3]}
56... Kh3 {[%clk 0:00:10]} 57. Kf2 {[%clk 0:00:07.8]} 57... Kg4 {[%clk
0:00:08.3]} 58. Qg3+ {[%clk 0:00:07.5]} 58... Kh5 {[%clk 0:00:08.2]} 59. Qxf3+
{[%clk 0:00:08.4]} 59... Kg5 {[%clk 0:00:08.7]} 60. Qxg2+ {[%clk 0:00:09.3]}
60... Kf6 {[%clk 0:00:09.6]} 61. Qf3+ {[%clk 0:00:09.6]} 1-0

[Event "Early-Titled-Tuesday-Blitz-October-10-2023"]
[Site "Chess.com"]
[Date "2023.10.10"]
[Round "8"]
[White "Boxerandchessplayer"]
[Black "ajedrezhoy"]
[Result "1/2-1/2"]
[WhiteElo "2184"]
[BlackElo "2366"]
[TimeControl "180+1"]
[EndTime "9:28:17 PDT"]
[Termination "Game drawn by repetition"]

1. d4 {[%clk 0:03:00.9]} 1... Nf6 {[%clk 0:02:58.9]} 2. Nf3 {[%clk 0:03:00.9]}
2... b6 {[%clk 0:02:59.4]} 3. c4 {[%clk 0:02:58.4]} 3... Bb7 {[%clk 0:02:58.4]}
4. Nc3 {[%clk 0:02:59.3]} 4... g6 {[%clk 0:02:56.6]} 5. Bf4 {[%clk 0:02:58.1]}
5... Bg7 {[%clk 0:02:55.7]} 6. e3 {[%clk 0:02:58.7]} 6... d5 {[%clk 0:02:55.4]}
7. Be2 {[%clk 0:02:58.4]} 7... O-O {[%clk 0:02:53.8]} 8. O-O {[%clk 0:02:58.8]}
8... Nbd7 {[%clk 0:02:53.8]} 9. h3 {[%clk 0:02:59.3]} 9... e6 {[%clk 0:02:53.4]}
10. Bg5 {[%clk 0:02:53.9]} 10... h6 {[%clk 0:02:44]} 11. Bh4 {[%clk 0:02:53.4]}
11... g5 {[%clk 0:02:41.6]} 12. Bg3 {[%clk 0:02:52.3]} 12... Ne4 {[%clk
0:02:41.8]} 13. Bh2 {[%clk 0:02:50.5]} 13... f5 {[%clk 0:02:39.8]} 14. Ne5
{[%clk 0:02:50.8]} 14... Nxe5 {[%clk 0:02:37.9]} 15. dxe5 {[%clk 0:02:50.2]}
15... Nxc3 {[%clk 0:02:29.1]} 16. bxc3 {[%clk 0:02:51.1]} 16... Qe7 {[%clk
0:02:27.6]} 17. Bf3 {[%clk 0:02:47.7]} 17... Rad8 {[%clk 0:02:24]} 18. Qa4
{[%clk 0:02:46]} 18... a5 {[%clk 0:02:03.6]} 19. Rfd1 {[%clk 0:02:42.3]} 19...
Ba8 {[%clk 0:01:50.2]} 20. Kh1 {[%clk 0:02:37.9]} 20... Qc5 {[%clk 0:01:41.4]}
21. Qb5 {[%clk 0:02:20.2]} 21... Qxb5 {[%clk 0:01:19.4]} 22. cxb5 {[%clk
0:02:21.1]} 22... c6 {[%clk 0:01:15.2]} 23. bxc6 {[%clk 0:01:55.9]} 23... Bxc6
{[%clk 0:01:14.3]} 24. c4 {[%clk 0:01:56.6]} 24... Ba8 {[%clk 0:01:12.4]} 25.
cxd5 {[%clk 0:01:56.4]} 25... Bxd5 {[%clk 0:01:11.6]} 26. Bxd5 {[%clk 0:01:56]}
26... Rxd5 {[%clk 0:01:09.1]} 27. Rxd5 {[%clk 0:01:56.3]} 27... exd5 {[%clk
0:01:09.4]} 28. Rd1 {[%clk 0:01:56.9]} 28... Rd8 {[%clk 0:01:08.2]} 29. e6
{[%clk 0:01:51.8]} 29... Kf8 {[%clk 0:01:07.6]} 30. Bc7 {[%clk 0:01:47.2]} 30...
Rc8 {[%clk 0:01:07.5]} 31. Bxb6 {[%clk 0:01:47.1]} 31... Ke7 {[%clk 0:01:07.2]}
32. Rxd5 {[%clk 0:01:45.3]} 32... Kxe6 {[%clk 0:01:07.1]} 33. Rxa5 {[%clk
0:01:37.1]} 33... Rc2 {[%clk 0:01:00.3]} 34. Kg1 {[%clk 0:01:28.9]} 34... Rc1+
{[%clk 0:01:00.1]} 35. Kh2 {[%clk 0:01:27.4]} 35... Rf1 {[%clk 0:00:57.8]} 36.
g3 {[%clk 0:00:58]} 36... Rxf2+ {[%clk 0:00:56.9]} 37. Kg1 {[%clk 0:00:58]}
37... Rc2 {[%clk 0:00:50.2]} 38. Bd4 {[%clk 0:00:53.1]} 38... Bf8 {[%clk
0:00:41.2]} 39. Ra6+ {[%clk 0:00:52.5]} 39... Kd5 {[%clk 0:00:40]} 40. Rf6
{[%clk 0:00:49.3]} 40... Bd6 {[%clk 0:00:39.4]} 41. Rxf5+ {[%clk 0:00:48.9]}
41... Ke4 {[%clk 0:00:39.7]} 42. Rf2 {[%clk 0:00:43.8]} 42... Rc1+ {[%clk
0:00:32.1]} 43. Kg2 {[%clk 0:00:43.8]} 43... h5 {[%clk 0:00:30.7]} 44. Bf6
{[%clk 0:00:21.8]} 44... Rc5 {[%clk 0:00:29.1]} 45. Bd4 {[%clk 0:00:20.6]} 45...
Ra5 {[%clk 0:00:28.4]} 46. Rd2 {[%clk 0:00:17.9]} 46... Bb4 {[%clk 0:00:27.6]}
47. Rb2 {[%clk 0:00:16]} 47... Bd6 {[%clk 0:00:26.3]} 48. Rf2 {[%clk 0:00:13.6]}
48... g4 {[%clk 0:00:24.5]} 49. hxg4 {[%clk 0:00:12.7]} 49... hxg4 {[%clk
0:00:24.7]} 50. Bc3 {[%clk 0:00:09.5]} 50... Ra4 {[%clk 0:00:23.1]} 51. Bd4
{[%clk 0:00:09.6]} 51... Ra5 {[%clk 0:00:22.7]} 52. Rb2 {[%clk 0:00:06]} 52...
Ra4 {[%clk 0:00:19.6]} 53. Rd2 {[%clk 0:00:04.2]} 53... Bb4 {[%clk 0:00:19.2]}
54. Rc2 {[%clk 0:00:04.1]} 54... Bd6 {[%clk 0:00:19]} 55. Rf2 {[%clk 0:00:04]}
55... Bc7 {[%clk 0:00:18.1]} 56. Kh2 {[%clk 0:00:03]} 56... Ra6 {[%clk
0:00:16.9]} 57. Kg2 {[%clk 0:00:02.9]} 57... Ra4 {[%clk 0:00:16.7]} 58. Re2
{[%clk 0:00:02.4]} 58... Ra6 {[%clk 0:00:15.6]} 59. Rf2 {[%clk 0:00:03.3]} 59...
Ra4 {[%clk 0:00:15]} 1/2-1/2

[Event "Early-Titled-Tuesday-Blitz-October-10-2023"]
[Site "Chess.com"]
[Date "2023.10.10"]
[Round "8"]
[White "kuanysh1981"]
[Black "Virgo15"]
[Result "0-1"]
[WhiteElo "2526"]
[BlackElo "2730"]
[TimeControl "180+1"]
[EndTime "9:28:21 PDT"]
[Termination "Virgo15 won by resignation"]

1. d4 {[%clk 0:03:00.6]} 1... Nf6 {[%clk 0:03:00.2]} 2. c4 {[%clk 0:02:59.4]}
2... g6 {[%clk 0:03:00.9]} 3. Nc3 {[%clk 0:02:58.5]} 3... Bg7 {[%clk 0:03:01.5]}
4. e4 {[%clk 0:02:57.6]} 4... d6 {[%clk 0:03:01.6]} 5. f3 {[%clk 0:02:57.5]}
5... O-O {[%clk 0:03:01.6]} 6. Be3 {[%clk 0:02:57.7]} 6... Nc6 {[%clk
0:03:02.1]} 7. Qd2 {[%clk 0:02:57]} 7... a6 {[%clk 0:03:02.7]} 8. O-O-O {[%clk
0:02:55.1]} 8... e5 {[%clk 0:02:59.3]} 9. d5 {[%clk 0:02:54.1]} 9... Nd4 {[%clk
0:02:56.8]} 10. Nge2 {[%clk 0:02:53.3]} 10... c5 {[%clk 0:02:56.3]} 11. dxc6
{[%clk 0:02:53.1]} 11... bxc6 {[%clk 0:02:57.1]} 12. Nxd4 {[%clk 0:02:52.7]}
12... exd4 {[%clk 0:02:57.4]} 13. Bxd4 {[%clk 0:02:53.6]} 13... Be6 {[%clk
0:02:54.6]} 14. Be3 {[%clk 0:02:34.1]} 14... Ne8 {[%clk 0:02:34]} 15. Bh6 {[%clk
0:02:30.8]} 15... Bxh6 {[%clk 0:02:28.7]} 16. Qxh6 {[%clk 0:02:30]} 16... Rb8
{[%clk 0:02:29]} 17. h4 {[%clk 0:02:26.1]} 17... Ng7 {[%clk 0:02:17.7]} 18. h5
{[%clk 0:02:23.2]} 18... g5 {[%clk 0:02:15.8]} 19. e5 {[%clk 0:02:17.8]} 19...
Qb6 {[%clk 0:02:05.1]} 20. Rd2 {[%clk 0:02:14.2]} 20... Bf5 {[%clk 0:01:48.8]}
21. Qxg5 {[%clk 0:02:05.9]} 21... h6 {[%clk 0:01:48.9]} 22. Qxh6 {[%clk
0:02:05.4]} 22... Qa5 {[%clk 0:01:44.1]} 23. Qe3 {[%clk 0:01:45.7]} 23... Rfe8
{[%clk 0:01:42.2]} 24. f4 {[%clk 0:01:38.7]} 24... dxe5 {[%clk 0:01:42.2]} 25.
Bd3 {[%clk 0:01:32]} 25... exf4 {[%clk 0:01:28.1]} 26. Qxf4 {[%clk 0:01:31.9]}
26... Bxd3 {[%clk 0:01:23.8]} 27. Rxd3 {[%clk 0:01:31.9]} 27... Qe5 {[%clk
0:00:56.3]} 28. Rf3 {[%clk 0:01:12.8]} 28... Qxf4+ {[%clk 0:00:37]} 29. Rxf4
{[%clk 0:01:13.7]} 29... Ne6 {[%clk 0:00:26.5]} 30. Rf5 {[%clk 0:01:13]} 30...
Nd4 {[%clk 0:00:25.3]} 31. Rg5+ {[%clk 0:01:11.7]} 31... Kh7 {[%clk 0:00:24.9]}
32. Rf1 {[%clk 0:01:04.3]} 32... f5 {[%clk 0:00:25.4]} 33. g4 {[%clk 0:00:56.4]}
33... Re3 {[%clk 0:00:19]} 34. gxf5 {[%clk 0:00:47.6]} 34... Rbe8 {[%clk
0:00:19.2]} 35. f6 {[%clk 0:00:43.5]} 35... Re1+ {[%clk 0:00:19.7]} 36. Rxe1
{[%clk 0:00:43.3]} 36... Rxe1+ {[%clk 0:00:20.6]} 37. Kd2 {[%clk 0:00:43.6]}
37... Nf3+ {[%clk 0:00:21]} 38. Kd3 {[%clk 0:00:39]} 38... Nxg5 {[%clk
0:00:21.9]} 39. b4 {[%clk 0:00:32.7]} 39... Rf1 {[%clk 0:00:21.4]} 40. Kd4
{[%clk 0:00:26.1]} 40... Rxf6 {[%clk 0:00:20.8]} 41. Kc5 {[%clk 0:00:26.4]}
41... Rf3 {[%clk 0:00:19.5]} 42. Na4 {[%clk 0:00:25.6]} 42... Ra3 {[%clk
0:00:19.6]} 43. Nb6 {[%clk 0:00:22.1]} 43... Rxa2 {[%clk 0:00:19.9]} 44. Kxc6
{[%clk 0:00:22.4]} 44... Rb2 {[%clk 0:00:19.1]} 45. Nd5 {[%clk 0:00:20.4]} 45...
Ne4 {[%clk 0:00:18.2]} 46. Kb6 {[%clk 0:00:19.9]} 46... Ra2 {[%clk 0:00:16]} 47.
c5 {[%clk 0:00:19.3]} 47... Rd2 {[%clk 0:00:09.7]} 48. Nc7 {[%clk 0:00:17.8]}
48... Rd4 {[%clk 0:00:09.6]} 49. Nxa6 {[%clk 0:00:17.6]} 49... Kg7 {[%clk
0:00:08.7]} 50. c6 {[%clk 0:00:17.2]} 50... Rc4 {[%clk 0:00:06.2]} 51. b5 {[%clk
0:00:14.9]} 51... Nf6 {[%clk 0:00:04.4]} 52. Nc5 {[%clk 0:00:09.8]} 52... Nd5+
{[%clk 0:00:04]} 53. Kb7 {[%clk 0:00:06]} 53... Rxc5 {[%clk 0:00:04.9]} 54. b6
{[%clk 0:00:05.6]} 54... Rb5 {[%clk 0:00:05.1]} 55. c7 {[%clk 0:00:05.5]} 55...
Rxb6+ {[%clk 0:00:05.6]} 56. Ka7 {[%clk 0:00:06.3]} 56... Rc6 {[%clk 0:00:05.7]}
57. h6+ {[%clk 0:00:05.8]} 57... Kh8 {[%clk 0:00:04.8]} 0-1

[Event "Early-Titled-Tuesday-Blitz-October-10-2023"]
[Site "Chess.com"]
[Date "2023.10.10"]
[Round "8"]
[White "Roman_Ovetchkin"]
[Black "masterofpuppets2"]
[Result "1-0"]
[WhiteElo "2697"]
[BlackElo "2513"]
[TimeControl "180+1"]
[EndTime "9:28:23 PDT"]
[Termination "Roman_Ovetchkin won by resignation"]

1. e4 {[%clk 0:03:00.9]} 1... c5 {[%clk 0:02:56]} 2. Nf3 {[%clk 0:03:00.3]} 2...
Nc6 {[%clk 0:02:55.8]} 3. Bb5 {[%clk 0:02:59.1]} 3... e6 {[%clk 0:02:55.8]} 4.
Bxc6 {[%clk 0:02:58.9]} 4... bxc6 {[%clk 0:02:56.7]} 5. d3 {[%clk 0:02:59.3]}
5... Ne7 {[%clk 0:02:54.7]} 6. Qe2 {[%clk 0:02:59.1]} 6... f6 {[%clk 0:02:51.5]}
7. Nh4 {[%clk 0:02:57.2]} 7... g6 {[%clk 0:02:33.5]} 8. f4 {[%clk 0:02:56.8]}
8... f5 {[%clk 0:02:18.7]} 9. O-O {[%clk 0:02:42.5]} 9... Bg7 {[%clk 0:02:17.6]}
10. e5 {[%clk 0:02:34.2]} 10... d6 {[%clk 0:02:13.6]} 11. Nf3 {[%clk 0:02:34.3]}
11... O-O {[%clk 0:02:11.3]} 12. Na3 {[%clk 0:02:23.6]} 12... d5 {[%clk
0:01:55]} 13. c4 {[%clk 0:02:19.5]} 13... a5 {[%clk 0:01:52.2]} 14. Be3 {[%clk
0:02:12.5]} 14... d4 {[%clk 0:01:49.3]} 15. Bf2 {[%clk 0:02:11.7]} 15... Bd7
{[%clk 0:01:44.5]} 16. Bh4 {[%clk 0:02:08.4]} 16... Re8 {[%clk 0:01:37.2]} 17.
Rab1 {[%clk 0:02:02.7]} 17... Qb6 {[%clk 0:01:35.6]} 18. Nc2 {[%clk 0:02:01.4]}
18... Rab8 {[%clk 0:01:32.4]} 19. Kh1 {[%clk 0:02:00.8]} 19... Kh8 {[%clk
0:01:31.4]} 20. Rg1 {[%clk 0:02:00.8]} 20... Ng8 {[%clk 0:01:31]} 21. h3 {[%clk
0:01:58.9]} 21... Bf8 {[%clk 0:01:20.9]} 22. Kh2 {[%clk 0:01:57.1]} 22... Be7
{[%clk 0:01:21.2]} 23. Bxe7 {[%clk 0:01:54.4]} 23... Rxe7 {[%clk 0:01:22.1]} 24.
Qd2 {[%clk 0:01:45.4]} 24... Qc7 {[%clk 0:01:19]} 25. g4 {[%clk 0:01:41.8]}
25... fxg4 {[%clk 0:01:14.3]} 26. hxg4 {[%clk 0:01:39.8]} 26... Rf8 {[%clk
0:01:14.6]} 27. Rbf1 {[%clk 0:01:10.9]} 27... Be8 {[%clk 0:01:06.2]} 28. Kg2
{[%clk 0:01:02.6]} 28... Nh6 {[%clk 0:01:05.7]} 29. Kg3 {[%clk 0:00:57.6]} 29...
Nf7 {[%clk 0:00:53.8]} 30. g5 {[%clk 0:00:55.9]} 30... h5 {[%clk 0:00:43.5]} 31.
Nce1 {[%clk 0:00:52.2]} 31... Kg7 {[%clk 0:00:40.1]} 32. Qe2 {[%clk 0:00:50.4]}
32... Nh8 {[%clk 0:00:39]} 33. Nd2 {[%clk 0:00:48.8]} 33... Ref7 {[%clk
0:00:37.1]} 34. Ne4 {[%clk 0:00:48.5]} 34... Rf5 {[%clk 0:00:37]} 35. Nf6 {[%clk
0:00:47.7]} 35... Nf7 {[%clk 0:00:36]} 36. Rh1 {[%clk 0:00:47.2]} 36... Nd8
{[%clk 0:00:33.6]} 37. Nf3 {[%clk 0:00:47.2]} 37... Rh8 {[%clk 0:00:30.1]} 38.
Nd2 {[%clk 0:00:44]} 38... Kf7 {[%clk 0:00:27.8]} 39. Nde4 {[%clk 0:00:43.9]}
39... Ke7 {[%clk 0:00:25]} 40. Nd6 {[%clk 0:00:28.8]} 40... Bf7 {[%clk
0:00:24.8]} 41. b3 {[%clk 0:00:24.5]} 41... Rf8 {[%clk 0:00:18.1]} 42. Qd2
{[%clk 0:00:24]} 42... Bg8 {[%clk 0:00:17.3]} 43. a3 {[%clk 0:00:23.5]} 43...
Nf7 {[%clk 0:00:16.3]} 44. Nxf5+ {[%clk 0:00:20.3]} 44... exf5 {[%clk
0:00:15.6]} 45. b4 {[%clk 0:00:21.2]} 45... cxb4 {[%clk 0:00:14.7]} 46. axb4
{[%clk 0:00:21.3]} 46... Nd8 {[%clk 0:00:15.1]} 47. Ra1 {[%clk 0:00:19.1]} 47...
Ne6 {[%clk 0:00:12.8]} 48. Rxa5 {[%clk 0:00:17.7]} 48... Bf7 {[%clk 0:00:12.5]}
49. Rha1 {[%clk 0:00:17.5]} 49... Rb8 {[%clk 0:00:12.7]} 50. Ra7 {[%clk
0:00:16.4]} 50... Rb7 {[%clk 0:00:13.3]} 51. Rxb7 {[%clk 0:00:15.2]} 51... Qxb7
{[%clk 0:00:13.7]} 52. c5 {[%clk 0:00:15.4]} 52... Nc7 {[%clk 0:00:13.3]} 53.
Qb2 {[%clk 0:00:12.8]} 53... Nb5 {[%clk 0:00:13.3]} 54. Ra5 {[%clk 0:00:12.3]}
54... Nc3 {[%clk 0:00:12.3]} 55. Qa3 {[%clk 0:00:11.3]} 55... Nb5 {[%clk
0:00:11.5]} 56. Qa1 {[%clk 0:00:10.8]} 56... Be6 {[%clk 0:00:10.6]} 57. Ra6
{[%clk 0:00:10.8]} 57... Bc8 {[%clk 0:00:10]} 58. Rb6 {[%clk 0:00:09.9]} 58...
Qc7 {[%clk 0:00:09.5]} 59. Rxb5 {[%clk 0:00:06.6]} 59... cxb5 {[%clk 0:00:10.4]}
60. Qxd4 {[%clk 0:00:06.6]} 60... Be6 {[%clk 0:00:11]} 61. Qd6+ {[%clk
0:00:07.1]} 61... Qxd6 {[%clk 0:00:11.4]} 62. exd6+ {[%clk 0:00:07.6]} 62... Kd8
{[%clk 0:00:12.3]} 63. d4 {[%clk 0:00:08.2]} 63... Bc4 {[%clk 0:00:12.4]} 64. d5
{[%clk 0:00:09.1]} 64... Kc8 {[%clk 0:00:12.6]} 65. c6 {[%clk 0:00:09.6]} 65...
Kd8 {[%clk 0:00:13.5]} 66. d7 {[%clk 0:00:10]} 66... Bb3 {[%clk 0:00:12.7]} 67.
d6 {[%clk 0:00:08.3]} 1-0